fUST/lending_fUST_20260224
["ID","MTS","AMOUNT","RATE_DAILY","PERIOD"]
[406402912,1771870417950,250.0,0.00053362,120]
[406402913,1771870418577,250.0,0.00053362,120]
[406402914,1771870419187,250.0,0.00053362,120]
[406402915,1771870419257,-6564.32,0.00025218,10]
[406402916,1771870419282,-5470.26,0.00025218,10]
[406402917,1771870419307,-4558.55,0.00025218,10]
[406402918,1771870419334,-600.0,0.00025732,10]
[406402919,1771870419362,-720.0,0.00028305,30]
[406402920,1771870419389,-864.0,0.00031135,30]
[406402921,1771870419415,-1000.0,0.00034249,30]
[406402922,1771870419443,-1000.0,0.00037674,30]
[406402923,1771870419466,-244.0,0.00037674,30]
[406402924,1771870419491,-500.0,0.00039999,31]
[406402925,1771870419515,-439.49510485,0.00039999,31]
[406402926,1771870419539,-500.0,0.00039999,31]
[406402927,1771870419561,-344.12447221,0.00039999,31]
[406402928,1771870419586,-12500.0,0.0004,120]
[406402929,1771870419609,-12500.0,0.000405,120]
[406402930,1771870419632,-12500.0,0.00041,120]
[406402931,1771870419656,-2621.12,0.000412,14]
[406402932,1771870419680,-12500.0,0.000415,120]
[406402933,1771870419703,-12500.0,0.00042,120]
[406402934,1771870419726,-12500.0,0.000425,120]
[406402935,1771870419751,-12500.0,0.00043,120]
[406402936,1771870419775,-12500.0,0.000435,120]
[406402937,1771870419798,-12500.0,0.00044,120]
[406402938,1771870419821,-12500.0,0.000445,120]
[406402939,1771870419844,-500.0,0.00044678,10]
[406402940,1771870419866,-12500.0,0.00045,120]
[406402941,1771870419890,-12500.0,0.000455,120]
[406402942,1771870419913,-12500.0,0.00046,120]
[406402943,1771870419937,-4350.68,0.000465,120]
[406402944,1771870419962,-500.0,0.00046575,120]
[406402945,1771870419987,-500.0,0.00046849,120]
[406402946,1771870420011,-500.0,0.00047123,120]
[406402947,1771870420035,-500.0,0.00047397,120]
[406402948,1771870420058,-500.0,0.00047572,10]
[406402949,1771870420082,-500.0,0.00047671,120]
[406402950,1771870420105,-500.0,0.00047945,120]
[406402951,1771870420131,-2208.83,0.00048219,120]
[406402952,1771870420154,-500.0,0.00048219,120]
[406402953,1771870420179,-2208.83,0.00048493,120]
[406402954,1771870420202,-500.0,0.00048493,120]
[406402955,1771870420225,-2621.12,0.000485,14]
[406402956,1771870420250,-2208.83,0.00048767,120]
[406402957,1771870420273,-500.0,0.00048767,120]
[406402958,1771870420298,-150.0,0.00048838,30]
[406402959,1771870420322,-2208.83,0.00049041,120]
[406402960,1771870420346,-500.0,0.00049041,120]
[406402961,1771870420369,-2790117.01042294,0.00049162,30]
[406402962,1771870424764,-1000.0,0.00041441,60]
[406402963,1771870424789,-492.0,0.00041441,60]
[406402964,1771870424814,-1000.0,0.00045585,120]
[406402965,1771870424839,-791.0,0.00045585,120]
[406402966,1771870424868,-150.0,0.00049067,30]
[406402967,1771870424894,-872940.85702706,0.00049162,30]
[406402968,1771870424917,-595.89,0.00049255,120]
[406402969,1771870424941,-556.53,0.00049315,120]
[406402970,1771870424967,-319.70105004,0.00049315,120]
[406402971,1771870424991,-670.64,0.00049315,120]
[406402972,1771870425015,-3000.0,0.00049315,120]
[406402973,1771870425038,-1510.943758,0.00049315,120]
[406402974,1771870425063,-1738.29,0.00049315,20]
[406402975,1771870425086,-500.0,0.00049315,120]
[406402976,1771870425109,-571.49,0.00049315,120]
[406402977,1771870425135,-2208.83,0.00049315,120]
[406402978,1771870425241,-500.0,0.00049315,120]
[406402979,1771870425267,-4782.67,0.000494,30]
[406402980,1771870425291,-1004.95,0.00049526,30]
[406402981,1771870425315,-556.53,0.00049589,120]
[406402982,1771870425338,-670.64,0.00049589,120]
[406402983,1771870425362,-1738.29,0.00049589,20]
[406402984,1771870425385,-500.0,0.00049589,120]
[406402985,1771870425407,-571.49,0.00049589,120]
[406402986,1771870425436,-2208.83,0.00049589,120]
[406402987,1771870425461,-500.0,0.00049589,120]
[406402988,1771870425484,-564.23735334,0.000496,120]
[406402989,1771870425509,-204.0,0.00049863,120]
[406402990,1771870425533,-556.53,0.00049863,120]
[406402991,1771870425557,-670.64,0.00049863,120]
[406402992,1771870425581,-1738.29,0.00049863,20]
[406402993,1771870425606,-500.0,0.00049863,120]
[406402994,1771870425631,-571.49,0.00049863,120]
[406402995,1771870425657,-2208.83,0.00049863,120]
[406402996,1771870425682,-500.0,0.00049863,120]
[406402997,1771870425706,-4085.48,0.0005,120]
[406402998,1771870425729,-250.0,0.0005,120]
[406402999,1771870425752,-15681.90762201,0.0005,120]
[406403000,1771870425775,-2506.7447174,0.0005,120]
[406403001,1771870425797,-1000.0,0.0005,30]
[406403002,1771870425819,-1500.0,0.0005,120]
[406403003,1771870425842,-50000.0,0.0005,120]
[406403004,1771870425864,-200089.97970555,0.0005,120]
[406403005,1771870425889,-154.0,0.0005,120]
[406403006,1771870425912,-1002.13113091,0.0005,120]
[406403007,1771870425935,-556.53,0.00050136,120]
[406403008,1771870425959,-670.64,0.00050136,120]
[406403009,1771870425983,-1738.29,0.00050136,20]
[406403010,1771870426005,-571.54007251,0.00050136,120]
[406403011,1771870426029,-571.49,0.00050136,120]
[406403012,1771870426055,-2208.83,0.00050136,120]
[406403013,1771870426078,-500.0,0.00050136,120]
[406403014,1771870426103,-1000.0,0.00050143,120]
[406403015,1771870426127,-1000.0,0.00050143,120]
[406403016,1771870426151,-556.53,0.0005041,120]
[406403017,1771870426174,-670.64,0.0005041,120]
[406403018,1771870426197,-1738.29,0.0005041,20]
[406403019,1771870426222,-571.49,0.0005041,120]
[406403020,1771870426247,-2208.83,0.0005041,120]
[406403021,1771870426271,-500.0,0.0005041,120]
[406403022,1771870426294,-500.0,0.00050467,10]
[406403023,1771870426319,-2815.24,0.000505,14]
[406403024,1771870426343,-556.53,0.00050684,120]
[406403025,1771870426366,-670.64,0.00050684,120]
[406403026,1771870426389,-1738.29,0.00050684,20]
[406403027,1771870426413,-571.49,0.00050684,120]
[406403028,1771870426441,-2208.83,0.00050684,120]
[406403029,1771870426464,-226.21597323,0.00050684,120]
[406403030,1771870426490,-178.79,0.00050789,120]
[406403031,1771870426514,-178.79,0.00050889,120]
[406403032,1771870426536,-485.1954,0.000509,120]
[406403033,1771870426559,-556.53,0.00050958,120]
[406403034,1771870426583,-670.64,0.00050958,120]
[406403035,1771870426606,-1738.29,0.00050958,20]
[406403036,1771870426630,-571.49,0.00050958,120]
[406403037,1771870426656,-2208.83,0.00050958,120]
[406403038,1771870426680,-178.79,0.00050989,120]
[406403039,1771870426705,-154.0,0.00051,120]
[406403040,1771870426728,-370.889326,0.00051,85]
[406403041,1771870426753,-178.82334651,0.00051089,120]
[406403042,1771870426777,-2621.12,0.000511,14]
[406403043,1771870426801,-428.0,0.00051112,120]
[406403044,1771870426825,-1780265.65351744,0.0005118,120]
[406403045,1771870435787,-3798.8,0.00025218,10]
[406403046,1771870435822,-150.0,0.00049478,30]
[406403047,1771870435846,-172502.77278288,0.0005118,120]
[406403048,1771870435868,-873.5,0.0005118,120]
[406403049,1771870435890,-556.53,0.00051232,120]
[406403050,1771870435913,-670.64,0.00051232,120]
[406403051,1771870435935,-1738.29,0.00051232,20]
[406403052,1771870435958,-571.49,0.00051232,120]
[406403053,1771870435984,-2208.83,0.00051232,120]
[406403054,1771870436084,-556.53,0.00051506,120]
[406403055,1771870436110,-670.64,0.00051506,120]
[406403056,1771870436134,-1738.29,0.00051506,20]
[406403057,1771870436157,-571.49,0.00051506,120]
[406403058,1771870436182,-2208.83,0.00051506,120]
[406403059,1771870436204,-1004.95,0.00051526,30]
[406403060,1771870436228,-704.0,0.00051544,31]
[406403061,1771870436252,-230.63543782,0.0005159,120]
[406403062,1771870436275,-4782.67,0.000516,30]
[406403063,1771870436297,-556.53,0.0005178,120]
[406403064,1771870436319,-670.64,0.0005178,120]
[406403065,1771870436343,-1738.29,0.0005178,20]
[406403066,1771870436367,-571.49,0.0005178,120]
[406403067,1771870436392,-2208.83,0.0005178,120]
[406403068,1771870436416,-154.0,0.000519,120]
[406403069,1771870436442,-248.98,0.00052,30]
[406403070,1771870436466,-20536.9,0.00052,14]
[406403071,1771870436490,-556.53,0.00052054,120]
[406403072,1771870436514,-670.64,0.00052054,120]
[406403073,1771870436538,-1738.29,0.00052054,20]
[406403074,1771870436561,-571.49,0.00052054,120]
[406403075,1771870436586,-9258.08,0.00052054,120]
[406403076,1771870436612,-2208.83,0.00052054,120]
[406403077,1771870436636,-402.0,0.00052184,31]
[406403078,1771870436659,-1339.3846,0.00052242,30]
[406403079,1771870436682,-556.53,0.00052328,120]
[406403080,1771870436706,-670.64,0.00052328,120]
[406403081,1771870436729,-1738.29,0.00052328,20]
[406403082,1771870436753,-571.49,0.00052328,120]
[406403083,1771870436779,-2208.83,0.00052328,120]
[406403084,1771870436802,-556.53,0.00052602,120]
[406403085,1771870436825,-670.64,0.00052602,120]
[406403086,1771870436849,-1738.29,0.00052602,20]
[406403087,1771870436873,-571.49,0.00052602,120]
[406403088,1771870436899,-2208.83,0.00052602,120]
[406403089,1771870436924,-262.0,0.00052762,14]
[406403090,1771870436949,-273.0,0.00052874,14]
[406403091,1771870436973,-556.68403007,0.00052876,120]
[406403092,1771870436996,-670.799553,0.00052876,120]
[406403093,1771870437020,-1738.42134815,0.00052876,20]
[406403094,1771870437044,-571.6108796,0.00052876,120]
[406403095,1771870437070,-2208.91745979,0.00052876,120]
[406403096,1771870437094,-154.0,0.000529,120]
[406403097,1771870437118,-620.69,0.00052959,120]
[406403098,1771870437142,-171.92058468,0.00053,120]
[406403099,1771870437167,-150.0,0.00053013,14]
[406403100,1771870437191,-150.0,0.00053013,14]
[406403101,1771870437216,-150.0,0.00053013,14]
[406403102,1771870437241,-150.0,0.00053013,14]
[406403103,1771870437265,-221.0,0.00053013,14]
[406403104,1771870437289,-150.0,0.00053013,30]
[406403105,1771870437314,-158.0,0.00053013,30]
[406403106,1771870437337,-150.0,0.00053084,14]
[406403107,1771870437361,-218.0,0.00053084,14]
[406403108,1771870437385,-250.0,0.00053156,14]
[406403109,1771870437409,-250.0,0.00053156,14]
[406403110,1771870437433,-250.0,0.00053156,14]
[406403111,1771870437460,-250.0,0.00053156,14]
[406403112,1771870437485,-250.0,0.00053156,14]
[406403113,1771870437509,-194.0,0.00053156,14]
[406403114,1771870437535,-200.0,0.00053156,30]
[406403115,1771870437560,-341.0,0.00053156,30]
[406403116,1771870437585,-150.0,0.0005317,14]
[406403117,1771870437609,-233.0,0.0005317,14]
[406403118,1771870437632,-122607.14111893,0.0005321,30]
[406403119,1771870437655,-676.14,0.00053262,120]
[406403120,1771870437679,-150.0,0.00053279,14]
[406403121,1771870437704,-269.0,0.00053279,14]
[406403122,1771870437727,-150.0,0.00053361,31]
[406403123,1771870437751,-150.0,0.00053361,31]
[406403124,1771870437775,-150.0,0.00053361,31]
[406403125,1771870437799,-150.0,0.00053361,31]
[406403126,1771870437823,-500.0,0.00053361,31]
[406403127,1771870437847,-150.0,0.00053361,31]
[406403128,1771870437870,-165.19050705,0.00053361,31]
[406403129,1771870437896,-150.0,0.00053361,31]
[406403130,1771870437919,-500.0,0.00053361,31]
[406403131,1771870437942,-500.0,0.00053361,31]
[406403132,1771870437967,-150.0,0.00053361,31]
[406403133,1771870437991,-500.0,0.00053361,31]
[406403134,1771870438094,-250.0,0.00053361,31]
[406403135,1771870438120,-500.0,0.00053361,31]
[406403136,1771870438148,-500.0,0.00053361,31]
[406403137,1771870438172,-500.0,0.00053361,31]
[406403138,1771870438196,-212.33545198,0.00053361,31]
[406403139,1771870438220,-500.0,0.00053361,31]
[406403140,1771870438243,-515.11955381,0.00053361,31]
[406403141,1771870438266,-500.0,0.00053361,31]
[406403142,1771870438288,-150.0,0.00053361,31]
[406403143,1771870438312,-500.0,0.00053361,31]
[406403144,1771870438337,-500.0,0.00053361,31]
[406403145,1771870438361,-291.13050135,0.00053361,31]
[406403146,1771870438384,-500.0,0.00053361,31]
[406403147,1771870438408,-500.0,0.00053361,31]
[406403148,1771870438431,-500.0,0.00053361,31]
[406403149,1771870438458,-150.0,0.00053361,31]
[406403150,1771870438483,-500.0,0.00053361,31]
[406403151,1771870438507,-500.0,0.00053361,31]
[406403152,1771870438531,-500.0,0.00053361,31]
[406403153,1771870438555,-500.0,0.00053361,31]
[406403154,1771870438578,-500.0,0.00053361,31]
[406403155,1771870438601,-500.0,0.00053361,31]
[406403156,1771870438624,-500.0,0.00053361,31]
[406403157,1771870438648,-500.0,0.00053361,31]
[406403158,1771870438671,-501.56258518,0.00053361,31]
[406403159,1771870438695,-501.8,0.00053362,10]
[406403160,1771870438721,-2621.12,0.000534,14]
[406403161,1771870438744,-164.0,0.00053467,14]
[406403162,1771870438770,-156.591,0.00053479,99]
[406403163,1771870438794,-4782.67,0.000537,30]
[406403164,1771870438819,-154.0,0.000539,120]
[406403165,1771870438843,-1611.50523861,0.00054,120]
[406403166,1771870438867,-432.35,0.00054,120]
[406403167,1771870438891,-93945.66232451,0.00054,120]
[406403168,1771870438916,-150.0,0.00054071,30]
[406403169,1771870438940,-185.61622649,0.00054399,49]
[406403170,1771870438966,-300.0,0.00054411,120]
[406403171,1771870438991,-300.0,0.00054411,120]
[406403172,1771870439020,-300.0,0.00054411,120]
[406403173,1771870439045,-445.97856015,0.000545,120]
[406403174,1771870439068,-2815.24,0.000545,14]
[406403175,1771870439120,3165.66,0.00025218,10]
[406403176,1771870440722,888.25,0.00042887,30]
[406403177,1771870440911,150.0,0.00048796,30]
[406403178,1771870445944,-150.0,0.00054795,14]
[406403179,1771870445970,-154.0,0.000548,120]
[406403180,1771870445995,-187.91638876,0.00055,120]
[406403181,1771870446019,-2000.0,0.00055,120]
[406403182,1771870446044,-1000.0,0.00055158,120]
[406403183,1771870446069,-1000.0,0.00055158,120]
[406403184,1771870446095,-579.0,0.00055158,120]
[406403185,1771870446118,-250.0,0.00055342,14]
[406403186,1771870446142,-154.0,0.000558,120]
[406403187,1771870446165,-350.0,0.0005589,14]
[406403188,1771870446188,-450.0,0.00056438,14]
[406403189,1771870446212,-205.0,0.00056548,120]
[406403190,1771870446237,-154.0,0.000567,120]
[406403191,1771870446262,-150.0,0.000567,120]
[406403192,1771870446286,-211.0,0.000567,120]
[406403193,1771870446309,-2621.12,0.000568,14]
[406403194,1771870446334,-187.0,0.00056866,21]
[406403195,1771870446356,-195.0,0.00056986,21]
[406403196,1771870446378,-550.0,0.00056986,14]
[406403197,1771870446402,-150.0,0.00057137,21]
[406403198,1771870446425,-150.0,0.00057137,21]
[406403199,1771870446453,-286.0,0.00057137,21]
[406403200,1771870446481,-263.0,0.00057213,21]
[406403201,1771870446507,-200.0,0.00057291,21]
[406403202,1771870446530,-200.0,0.00057291,21]
[406403203,1771870446555,-200.0,0.00057291,21]
[406403204,1771870446664,-200.0,0.00057291,21]
[406403205,1771870446691,-232.0,0.00057291,21]
[406403206,1771870446720,-274.0,0.00057306,21]
[406403207,1771870446747,-299.0,0.00057423,21]
[406403208,1771870446773,-650.0,0.00057534,14]
[406403209,1771870446800,-154.0,0.000577,120]
[406403210,1771870446827,-750.0,0.00058082,14]
[406403211,1771870446854,-850.0,0.0005863,14]
[406403212,1771870446889,-154.0,0.000587,120]
[406403213,1771870446918,-597.02466622,0.000589,120]
[406403214,1771870446945,-161.0,0.00059,120]
[406403215,1771870446971,-950.0,0.00059178,14]
[406403216,1771870446997,-150.0,0.00059304,30]
[406403217,1771870447022,-305959.2618,0.0005944,30]
[406403218,1771870447047,-154.0,0.000596,120]
[406403219,1771870447071,-965.31678999,0.00059726,14]
[406403220,1771870447098,-167.26,0.000598,14]
[406403221,1771870447125,-4000.000999,0.0006,120]
[406403222,1771870447149,-250.0,0.0006,120]
[406403223,1771870447175,-3033.47880865,0.0006,120]
[406403224,1771870447203,-9258.08,0.00060273,120]
[406403225,1771870447232,-154.0,0.000606,120]
[406403226,1771870447257,-1000.0,0.00060674,120]
[406403227,1771870447282,-1000.0,0.00060674,120]
[406403228,1771870447307,-1000.0,0.00060674,120]
[406403229,1771870447331,-154.0,0.000616,120]
[406403230,1771870447356,-154.0,0.000625,120]
[406403231,1771870447381,-154.0,0.000635,120]
[406403232,1771870447406,-2621.12,0.000635,14]
[406403233,1771870447431,-168.95,0.00064,14]
[406403234,1771870447458,-3500.0,0.000644,120]
[406403235,1771870447485,-154.0,0.000645,120]
[406403236,1771870447511,-150.0,0.00064536,30]
[406403237,1771870447537,-248.98,0.00065,30]
[406403238,1771870447562,-2815.24,0.000653,14]
[406403239,1771870447588,-154.0,0.000654,120]
[406403240,1771870447613,-154.0,0.000664,120]
[406403241,1771870447637,-150.0,0.00066599,60]
[406403242,1771870447662,-871.0,0.00066741,120]
[406403243,1771870447686,-154.0,0.000674,120]
[406403244,1771870447710,-154.0,0.000683,120]
[406403245,1771870447736,-9258.08,0.00068493,120]
[406403246,1771870447794,2638.05,0.00025218,10]
[406403247,1771870449436,174.61919141,0.00054499,120]
[406403248,1771870450056,181.08010149,0.00054398,49]
[406403249,1771870450327,285.0,0.00025732,10]
[406403250,1771870450654,187.78006525,0.0005407,30]
[406403251,1771870451293,194.72792766,0.00054795,10]
[406403252,1771870451975,201.93286099,0.00054795,10]
[406403253,1771870452618,209.40437684,0.00054795,10]
[406403254,1771870453249,217.15233878,0.00054795,10]
[406403255,1771870454373,225.18697532,0.00054795,10]
[406403256,1771870454944,500.0,0.00054499,120]
[406403257,1771870455009,233.51889341,0.00054795,10]
[406403258,1771870455638,242.15909246,0.00054795,10]
[406403259,1771870456146,500.0,0.00054398,49]
[406403260,1771870456276,251.11897888,0.00054795,10]
[406403261,1771870456790,500.0,0.0005407,30]
[406403262,1771870456894,150.0,0.0004874,30]
[406403263,1771870456924,260.4103811,0.00054795,10]
[406403264,1771870457439,500.0,0.00054795,10]
[406403265,1771870457498,270.0455652,0.00054795,10]
[406403266,1771870457730,2198.38,0.00025218,10]
[406403267,1771870458066,500.0,0.00054795,10]
[406403268,1771870458114,280.03725112,0.00054795,10]
[406403269,1771870458675,500.0,0.00054795,10]
[406403270,1771870458747,290.39862941,0.00054795,10]
[406403271,1771870459291,500.0,0.00054795,10]
[406403303,1771870472813,151.0,0.00053361,120]
[406403305,1771870473116,151.0,0.00053361,120]
[406403306,1771870473502,151.0,0.00053361,120]
[406403307,1771870474021,151.0,0.00053361,120]
[406403308,1771870478479,-2579.357833,0.00053361,9]
[406403639,1771870590127,151.0,0.00053361,120]
[406403642,1771870590597,301.002416,0.00053361,120]
[406403645,1771870595293,6662.36744999,0.00053361,10]
[406410963,1771870864105,511.009,0.00042413,120]
[406410971,1771870864533,429.0,0.00042413,120]
[406411601,1771870894010,1383.37292564,0.00042413,120]
[406412833,1771871109878,151.0,0.00042413,120]
[406412834,1771871110178,151.0,0.00042413,120]
[406412835,1771871110470,151.0,0.00042413,120]
[406412836,1771871110798,151.0,0.00042413,120]
[406412839,1771871135097,-592.58352443,0.00013173,2]
[406412843,1771871236131,-788.87405327,0.00012911,2]
[406412921,1771871290282,10000.0,0.00042413,10]
[406412928,1771871371111,-2417.32525172,0.00012911,2]
[406412929,1771871371133,-200.59296061,0.00012941,2]
[406412930,1771871371155,-1375.69322613,0.00013041,2]
[406412931,1771871371173,-14.41647557,0.00013173,2]
[406412932,1771871371192,-210.4049906,0.00013273,2]
[406412933,1771871371214,-387.56709537,0.00013273,2]
[406412934,1771871371240,-113.16860377,0.00013273,2]
[406412935,1771871371259,-649.03909534,0.00013699,2]
[406412936,1771871371279,-500.0,0.00013699,2]
[406412937,1771871371299,-500.0,0.00013699,2]
[406412938,1771871371321,-500.0,0.00013699,2]
[406412939,1771871371340,-320.24175355,0.00013699,2]
[406412940,1771871371359,-500.0,0.00013699,2]
[406412941,1771871371377,-150.0,0.00013699,2]
[406412942,1771871371397,-500.0,0.00013699,2]
[406412943,1771871371416,-218.52121232,0.00013699,2]
[406412959,1771871432115,-210.4049906,0.00013273,2]
[406412961,1771871432124,-281.47878768,0.00013699,2]
[406412963,1771871432133,-500.39857232,0.00013699,2]
[406412965,1771871432142,-500.0,0.00013699,2]
[406412967,1771871432151,-500.0,0.00013699,2]
[406412969,1771871432160,-1000.0,0.00014247,2]
[406412971,1771871432169,-838.52098207,0.00014247,2]
[406412973,1771871432178,-834.21145277,0.00014247,2]
[406412975,1771871432190,-1000.0,0.00014247,2]
[406412977,1771871432199,-253.11900238,0.00014247,2]
[406412979,1771871432208,-230.55455036,0.00014247,2]
[406412981,1771871432219,-365.57786794,0.00014247,2]
[406412983,1771871432230,-403.8675817,0.00014247,2]
[406412985,1771871432239,-269.5424183,0.00014247,2]
[406412987,1771871432250,-402.18638781,0.00014247,2]
[406413175,1771871438288,-328.27119389,0.00014247,2]
[406413177,1771871438298,-993.59359061,0.00014795,2]
[406413384,1771871440493,-398.00552291,0.00014795,2]
[406413694,1771871443398,-100.77899889,0.00014795,2]
[406413696,1771871443407,-172.81600357,0.00016999,2]
[406413698,1771871443419,-500.0,0.00016999,2]
[406413700,1771871443428,-138.81917305,0.00016999,2]
[406413702,1771871443439,-361.18082695,0.00016999,2]
[406413704,1771871443448,-134.82170036,0.00016999,2]
[406413706,1771871443459,-365.17829964,0.00016999,2]
[406413708,1771871443468,-433.18211006,0.00016999,2]
[406413710,1771871443478,-500.0,0.00016999,2]
[406413712,1771871443488,-500.0,0.00016999,2]
[406413714,1771871443497,-200.0,0.00016999,2]
[406413716,1771871443507,-80.2615264,0.00016999,2]
[406413719,1771871443518,-419.7384736,0.00016999,2]
[406413721,1771871443527,-500.0,0.00016999,2]
[406413723,1771871443537,-500.0,0.00016999,2]
[406413734,1771871443631,-499.70082229,0.00016999,2]
[406413736,1771871443640,-2162.91226072,0.00017,2]
[406413738,1771871443651,-41123.36519687,0.00017,2]
[406415497,1771871463858,-309.54,0.00017,2]
[406415504,1771871488945,-500.0,0.00013699,2]
[406415505,1771871488972,-402.71852055,0.00014247,2]
[406415506,1771871488985,-500.0,0.00014247,2]
[406415507,1771871488998,-97.28147945,0.00014247,2]
[406415508,1771871506864,244.4583021,0.00042413,120]
[406415509,1771871518265,-902.71852055,0.0001683,2]
[406415642,1771872435144,-1089.41504854,0.00011879,2]
[406415659,1771872545111,-493.82192635,0.00011879,2]
[406415660,1771872547152,-3416.76302511,0.00011879,2]
[406415661,1771872547173,-300.0,0.00011997,2]
[406415662,1771872547192,-500.0,0.00011998,2]
[406415663,1771872547217,-148.45390667,0.00011998,2]
[406415665,1771872561119,-351.54609333,0.00011998,2]
[406415666,1771872561140,-500.0,0.00011998,2]
[406415667,1771872561160,-500.0,0.00011998,2]
[406415668,1771872561179,-500.0,0.00011998,2]
[406415669,1771872561199,-500.0,0.00011998,2]
[406415670,1771872561219,-500.0,0.00011998,2]
[406415671,1771872561244,-500.0,0.00011998,2]
[406415672,1771872561264,-500.0,0.00011998,2]
[406415673,1771872561285,-500.0,0.00011998,2]
[406415674,1771872561307,-500.0,0.00011998,2]
[406415675,1771872561416,-536.66170621,0.00011998,2]
[406415676,1771872561439,-500.0,0.00011998,2]
[406415677,1771872561459,-315.96790255,0.00011998,2]
[406415678,1771872561480,-500.0,0.00011998,2]
[406415679,1771872561501,-500.0,0.00011998,2]
[406415680,1771872561522,-500.0,0.00011998,2]
[406415681,1771872561543,-500.0,0.00011998,2]
[406415682,1771872561563,-500.0,0.00011998,2]
[406415683,1771872561582,-500.0,0.00011998,2]
[406415684,1771872561602,-500.0,0.00011998,2]
[406415685,1771872561623,-500.0,0.00011998,2]
[406415686,1771872561642,-500.0,0.00011998,2]
[406415687,1771872561664,-500.0,0.00011998,2]
[406415688,1771872561685,-479.61084971,0.00011998,2]
[406415689,1771872561706,-294.31533413,0.00011998,2]
[406415690,1771872561729,-500.0,0.00011998,2]
[406415691,1771872561751,-500.0,0.00011998,2]
[406415692,1771872561773,-235.11497458,0.00011998,2]
[406415693,1771872561796,-500.0,0.00011998,2]
[406415694,1771872561817,-500.0,0.00011998,2]
[406415695,1771872561839,-500.0,0.00011998,2]
[406415696,1771872561860,-500.0,0.00011998,2]
[406415697,1771872561882,-500.0,0.00011998,2]
[406415698,1771872561904,-500.0,0.00011998,2]
[406415699,1771872561925,-500.0,0.00011998,2]
[406415700,1771872561946,-500.0,0.00011998,2]
[406415701,1771872561969,-400.0,0.00011998,2]
[406415702,1771872561997,-500.0,0.00011998,2]
[406415703,1771872562023,-500.0,0.00011998,2]
[406415704,1771872562046,-500.0,0.00011998,2]
[406415705,1771872562068,-500.0,0.00011998,2]
[406415706,1771872562092,-500.0,0.00011998,2]
[406415707,1771872562117,-500.0,0.00011998,2]
[406415708,1771872562139,-500.0,0.00011998,2]
[406415709,1771872562160,-500.0,0.00011998,2]
[406415710,1771872562181,-500.0,0.00011998,2]
[406415711,1771872562201,-500.0,0.00011998,2]
[406415712,1771872562224,-500.0,0.00011998,2]
[406415713,1771872562247,-500.0,0.00011998,2]
[406415714,1771872562268,-500.0,0.00011998,2]
[406415715,1771872562289,-500.0,0.00011998,2]
[406415716,1771872562310,-500.0,0.00011998,2]
[406415717,1771872562331,-500.0,0.00011998,2]
[406415718,1771872562353,-500.0,0.00011998,2]
[406415719,1771872562376,-500.0,0.00011998,2]
[406415720,1771872562398,-500.0,0.00011998,2]
[406415721,1771872562424,-500.0,0.00011998,2]